bitfinex/quotes_BTCUSD_20241201
["timestamp","ask_amount","ask_price","bid_price","bid_amount"]
[1733084052802,2.00059655,97100.0,97099.0,0.34409679]
[1733084053019,2.00159655,97100.0,97099.0,0.34409679]
[1733084053244,2.00159655,97100.0,97099.0,0.34732399]
[1733084053453,2.00159655,97100.0,97099.0,0.34409679]
[1733084053994,2.00159655,97100.0,97099.0,0.65620899]
[1733084054491,2.00159655,97100.0,97099.0,0.65943619]
[1733084054697,2.00159655,97100.0,97099.0,0.70833619]
[1733084054903,2.00159655,97100.0,97099.0,0.39622399]
[1733084055134,2.00332475,97100.0,97099.0,0.47342399]
[1733084056862,2.00332475,97100.0,97099.0,0.14134899]
[1733084057310,2.00332475,97100.0,97099.0,0.13812179]
[1733084059396,2.00332475,97100.0,97099.0,0.14133831]
[1733084065305,2.00332475,97100.0,97099.0,0.13812179]
[1733084065730,2.00332475,97100.0,97099.0,0.14133832]
[1733084066416,2.00332475,97100.0,97099.0,0.13812179]
[1733084066645,2.00332475,97100.0,97099.0,0.14133832]
[1733084068346,2.00332475,97100.0,97099.0,0.13812179]
[1733084068964,2.00332475,97100.0,97099.0,0.14133832]
[1733084069963,2.00332475,97100.0,97099.0,0.13812179]
[1733084070834,2.00332475,97100.0,97099.0,0.14133832]
[1733084076402,2.00332475,97100.0,97099.0,0.15223478]
[1733084080550,2.00332475,97100.0,97099.0,0.46420183]
[1733084080754,2.00332475,97100.0,97099.0,0.4646715]
[1733084080964,2.00332475,97100.0,97099.0,0.46467266]
[1733084081169,2.00332475,97100.0,97099.0,0.15223478]
[1733084081598,2.00332475,97100.0,97099.0,0.14901825]
[1733084084303,2.00332475,97100.0,97099.0,0.19773243]
[1733084092957,2.00332475,97100.0,97099.0,0.27573243]
[1733084093223,2.00332475,97100.0,97099.0,0.47735288]
[1733084094071,2.00332475,97100.0,97099.0,0.47435288]
[1733084094291,2.00432475,97100.0,97099.0,0.48235288]
[1733084094528,2.00432475,97100.0,97099.0,0.98392201]
[1733084094760,2.00232475,97100.0,97099.0,0.46835288]
[1733084095200,2.00332475,97100.0,97099.0,0.47735288]
[1733084095658,2.00332475,97100.0,97099.0,0.97883871]
[1733084096117,2.00332475,97100.0,97099.0,0.97883235]
[1733084096774,2.00432475,97100.0,97099.0,0.48535288]
[1733084098374,2.00432475,97100.0,97099.0,0.35835288]
[1733084104014,1.97796931,97100.0,97099.0,0.35835288]
[1733084111596,1.97796931,97100.0,97099.0,0.22485288]
[1733084111810,1.97796931,97100.0,97099.0,0.17023243]
[1733084112246,1.97796931,97100.0,97099.0,0.16701825]
[1733084112464,1.97796931,97100.0,97099.0,0.17074467]
[1733084112700,1.97696931,97100.0,97099.0,0.15901825]
[1733084112968,1.97596931,97100.0,97099.0,0.15501825]
[1733084113207,1.97696931,97100.0,97099.0,0.16401825]
[1733084113439,1.97696931,97100.0,97099.0,0.15901825]
[1733084113904,1.97696931,97100.0,97099.0,0.16401825]
[1733084115558,1.97696931,97100.0,97099.0,0.18701825]
[1733084119490,1.97696931,97100.0,97099.0,0.19074467]
[1733084119737,1.97696931,97100.0,97099.0,0.18701825]
[1733084120420,1.97696931,97100.0,97099.0,0.17701825]
[1733084120612,1.97696931,97100.0,97099.0,0.18701825]
[1733084122880,1.97696931,97100.0,97099.0,0.35274636]
[1733084123173,2.10586931,97100.0,97099.0,0.0195967]
[1733084123389,2.10586931,97100.0,97099.0,0.0123]
[1733084123873,2.10586931,97100.0,97099.0,0.0073]
[1733084124113,0.205998,97088.0,97087.0,0.0055967]
[1733084124370,0.334898,97088.0,97087.0,0.0055967]
[1733084124587,0.334898,97088.0,97084.0,0.0008641]
[1733084124588,0.206001,97087.0,97086.0,0.0055967]
[1733084124826,0.206001,97087.0,97085.0,0.0055967]
[1733084125283,0.412002,97087.0,97084.0,0.0008641]
[1733084126674,0.416002,97087.0,97084.0,0.0008641]
[1733084126886,0.418002,97087.0,97084.0,0.0008641]
[1733084131396,0.206005,97085.0,97084.0,0.0008641]
[1733084131586,0.30885021,97085.0,97084.0,0.0008641]
[1733084132735,0.31385021,97085.0,97084.0,0.0008641]
[1733084132971,0.39705021,97085.0,97084.0,0.0008641]
[1733084134274,0.54705021,97085.0,97084.0,0.0008641]
[1733084134487,0.59385021,97085.0,97084.0,0.0008641]
[1733084135175,0.59285021,97085.0,97084.0,0.0008641]
[1733084135721,0.59385021,97085.0,97084.0,0.0008641]
[1733084136227,0.58885021,97085.0,97084.0,0.0008641]
[1733084136433,0.60285021,97085.0,97084.0,0.0008641]
[1733084136899,0.59385021,97085.0,97084.0,0.0008641]
[1733084137134,0.60285021,97085.0,97084.0,0.0008641]
[1733084138065,0.500005,97085.0,97084.0,0.0008641]
[1733084138355,0.370005,97085.0,97084.0,0.0008641]
[1733084141578,0.220005,97085.0,97084.0,0.0008641]
[1733084142039,0.220005,97085.0,97084.0,0.0064608]
[1733084142923,0.215005,97085.0,97084.0,0.0064608]
[1733084143439,0.206005,97085.0,97084.0,0.0064608]
[1733084144227,0.207005,97085.0,97084.0,0.0064608]
[1733084145584,0.207005,97085.0,97084.0,0.01023887]
[1733084146269,0.001,97085.0,97084.0,0.01023887]
[1733084148753,0.001,97085.0,97084.0,0.01123887]
[1733084149202,0.206001,97087.0,97084.0,0.01123887]
[1733084149621,0.205998,97088.0,97084.0,0.01123887]
[1733084150090,0.205998,97088.0,97084.0,0.01023887]
[1733084150311,0.411997,97088.0,97084.0,0.01023887]
[1733084150519,0.411997,97088.0,97084.0,0.01123887]
[1733084150743,0.206002,97086.0,97084.0,0.01123887]
[1733084151654,0.001,97087.0,97086.0,0.0511967]
[1733084151883,0.001,97087.0,97086.0,0.0530196]
[1733084152321,0.001,97087.0,97086.0,0.05496026]
[1733084152572,0.205986,97094.0,97086.0,0.05496026]
[1733084152805,0.205996,97089.0,97086.0,0.05496026]
[1733084153030,0.411992,97089.0,97086.0,0.0511967]
[1733084153243,0.205996,97089.0,97087.0,0.00376287]
[1733084153480,0.0017278,97099.0,97087.0,0.00376287]
[1733084153721,0.205998,97088.0,97086.0,0.0571967]
[1733084153939,0.205998,97088.0,97086.0,0.0541967]
[1733084154152,0.205994,97090.0,97086.0,0.0541967]
[1733084154387,0.205994,97090.0,97086.0,0.0571967]
[1733084154608,0.205994,97090.0,97086.0,0.0541967]
[1733084154841,0.205996,97089.0,97086.0,0.0541967]
[1733084155110,0.205996,97089.0,97086.0,0.0561967]
[1733084155523,0.205996,97089.0,97086.0,0.0541967]
[1733084155742,0.205996,97089.0,97086.0,0.0511967]
[1733084155952,0.205996,97089.0,97088.0,0.0055967]
[1733084157502,0.205996,97089.0,97088.0,0.0085967]
[1733084158231,0.205996,97089.0,97088.0,0.0105967]
[1733084160011,0.205996,97089.0,97088.0,0.005]
[1733084160227,0.287096,97089.0,97088.0,0.005]
[1733084161856,0.287096,97089.0,97088.0,0.003]
[1733084162539,0.0821,97089.0,97084.0,0.0008641]
[1733084162777,0.206001,97087.0,97084.0,0.0064608]
[1733084163040,0.412002,97087.0,97084.0,0.0064608]
[1733084163461,0.412002,97087.0,97084.0,0.0008641]
[1733084164561,0.414002,97087.0,97084.0,0.0008641]
[1733084169517,0.414002,97087.0,97086.0,0.0055967]
[1733084169518,0.002,97087.0,97086.0,0.0055967]
[1733084170182,0.002,97087.0,97086.0,0.00935956]
[1733084171336,0.003,97089.0,97086.0,0.00935956]
[1733084171337,0.205996,97089.0,97086.0,0.00935956]
[1733084171826,0.411992,97089.0,97086.0,0.00935956]
[1733084172045,0.411992,97089.0,97086.0,0.00376286]
[1733084172492,0.206001,97087.0,97084.0,0.0008641]
[1733084172709,0.206005,97085.0,97084.0,0.0008641]
[1733084172932,0.30885021,97085.0,97084.0,0.0008641]
[1733084173150,0.35775021,97085.0,97084.0,0.0008641]
[1733084173397,0.35775021,97085.0,97063.0,0.0064611]
[1733084173398,0.206047,97065.0,97063.0,0.00558986]
[1733084174066,0.206068,97055.0,97053.0,0.04535436]
[1733084174522,0.206068,97055.0,97054.0,0.00378455]
[1733084174785,0.206068,97055.0,97053.0,0.03413891]
[1733084175001,0.20666419,97055.0,97054.0,0.0035743]
[1733084176115,0.20766419,97055.0,97054.0,0.0035743]
[1733084176564,0.206072,97054.0,97050.0,0.0702743]
[1733084176777,0.20866419,97055.0,97054.0,0.003]
[1733084177208,0.20866419,97055.0,97050.0,0.0702743]
[1733084177209,0.41473319,97055.0,97050.0,0.06736189]
[1733084177636,0.41273319,97055.0,97050.0,0.06736189]
[1733084177858,0.41273319,97055.0,97050.0,0.07036189]
[1733084178083,0.41273319,97055.0,97050.0,0.04536189]
[1733084178807,0.41273319,97055.0,97050.0,0.04036189]
[1733084179049,0.206072,97053.0,97051.0,0.01627237]
[1733084179287,0.20666419,97055.0,97051.0,0.00627237]
[1733084179535,0.20766419,97055.0,97052.0,0.00666914]
[1733084180010,0.41373319,97055.0,97051.0,0.00127237]
[1733084180230,0.41273319,97055.0,97051.0,0.00427237]
[1733084180685,0.41373319,97055.0,97051.0,0.00427237]
[1733084180954,0.41273319,97055.0,97050.0,0.03663426]
[1733084181185,0.41273319,97055.0,97052.0,0.003]
[1733084181424,0.20666419,97055.0,97051.0,0.01315965]
[1733084181662,0.41273319,97055.0,97051.0,0.01315965]
[1733084181900,0.41273319,97055.0,97052.0,0.00666914]
[1733084182130,0.41373319,97055.0,97051.0,0.01315965]
[1733084182635,0.41273319,97055.0,97051.0,0.01615965]
[1733084182874,0.41373319,97055.0,97051.0,0.01615965]
[1733084185232,0.41373319,97055.0,97051.0,0.01702375]
[1733084185465,0.20766419,97055.0,97051.0,0.01702375]
[1733084185926,0.20766419,97055.0,97052.0,0.00669909]
[1733084186389,0.20766419,97055.0,97051.0,0.01702375]
[1733084186831,0.00159619,97055.0,97052.0,0.005873]
[1733084187064,0.00059619,97055.0,97052.0,0.005873]
[1733084187329,0.00059619,97055.0,97052.0,0.007873]
[1733084187563,0.00159619,97055.0,97052.0,0.007873]
[1733084189208,0.00059619,97055.0,97052.0,0.007873]
[1733084189459,0.00159619,97055.0,97052.0,0.007873]
[1733084190653,0.00259619,97055.0,97052.0,0.007873]
[1733084193122,0.00259619,97055.0,97052.0,0.213946]
[1733084193394,0.00259619,97055.0,97054.0,0.20607]
[1733084193631,0.00259619,97055.0,97054.0,0.44053856]
[1733084193865,0.0098845,97073.0,97068.0,0.1298]
[1733084194103,0.206027,97075.0,97068.0,0.1298]
[1733084194335,0.206005,97085.0,97069.0,0.00584658]
[1733084194584,1.97537276,97100.0,97069.0,0.00584658]
[1733084194815,1.97537276,97100.0,97068.0,0.15053229]
[1733084194816,0.10284521,97096.0,97068.0,0.15053229]
[1733084195104,0.206035,97071.0,97068.0,0.15053229]
[1733084195570,0.41207,97071.0,97068.0,0.1298]
[1733084195810,0.41207,97071.0,97069.0,0.00584658]
[1733084195811,0.206035,97071.0,97069.0,0.00584658]
[1733084196037,0.206036,97070.0,97069.0,0.00684658]
[1733084196286,0.206036,97070.0,97069.0,0.001]
[1733084196496,0.206026,97076.0,97056.0,0.0764]
[1733084196751,0.206064,97057.0,97056.0,0.0764]
[1733084197208,0.206064,97057.0,97055.0,0.01726912]
[1733084197933,0.206064,97057.0,97056.0,0.001]
[1733084199076,0.206064,97057.0,97055.0,0.01726912]
[1733084199307,0.206064,97057.0,97055.0,0.02126912]
[1733084199790,0.206064,97057.0,97055.0,0.01726912]
[1733084200041,0.206064,97057.0,97056.0,0.003]
[1733084200732,0.206064,97057.0,97055.0,0.01726912]
[1733084200943,0.206064,97057.0,97055.0,0.02026912]
[1733084201417,0.206064,97057.0,97056.0,0.002]
[1733084201887,0.206064,97057.0,97055.0,0.02026912]
[1733084202332,0.206064,97057.0,97055.0,0.02126912]
[1733084202815,0.206064,97057.0,97055.0,0.01726912]
[1733084203048,0.206064,97057.0,97056.0,0.004]
[1733084203277,0.206064,97057.0,97056.0,0.001]
[1733084204228,0.206064,97057.0,97056.0,0.004]
[1733084204475,0.206064,97057.0,97056.0,0.003]
[1733084205670,0.206064,97057.0,97056.0,0.004]
[1733084206388,0.206064,97057.0,97056.0,0.0045]
[1733084208553,0.207793,97057.0,97056.0,0.0045]
[1733084210544,0.001729,97057.0,97056.0,0.0045]
[1733084211955,0.001729,97057.0,97056.0,0.1258]
[1733084212185,0.001729,97057.0,97056.0,0.13169129]
[1733084213870,0.00090988,97057.0,97056.0,0.13169129]
[1733084214910,0.00090988,97057.0,97056.0,0.01039129]
[1733084215349,0.00090988,97057.0,97056.0,0.0045]
[1733084220841,0.00090988,97057.0,97056.0,0.0053641]
[1733084224785,0.00090988,97057.0,97056.0,0.14024361]
[1733084225049,0.00090988,97057.0,97056.0,0.24491237]
[1733084225310,0.00090988,97057.0,97056.0,0.25308882]
[1733084225987,0.00090988,97057.0,97056.0,0.30243111]
[1733084226417,0.00190988,97057.0,97056.0,0.30843111]
[1733084226627,0.001729,97071.0,97070.0,0.216036]
[1733084226840,0.001729,97071.0,97070.0,0.59788121]
[1733084227102,0.001729,97071.0,97070.0,0.60371128]
[1733084228760,0.002729,97071.0,97070.0,0.60871128]
[1733084229197,0.002729,97071.0,97070.0,0.61771128]
[1733084229432,0.003729,97071.0,97070.0,0.61771128]
[1733084232351,0.003729,97071.0,97070.0,0.92946184]
[1733084233436,0.003729,97071.0,97070.0,0.61771128]
[1733084234590,0.003729,97071.0,97070.0,0.62888199]
[1733084236685,0.003729,97071.0,97070.0,0.95063255]
[1733084236926,0.003729,97071.0,97070.0,0.63888199]
[1733084237807,0.00224583,97071.0,97070.0,0.63388199]
[1733084238024,0.00224583,97071.0,97070.0,0.66533353]
[1733084238264,0.00624583,97071.0,97070.0,0.66533353]
[1733084238483,0.00624583,97071.0,97070.0,0.63388199]
[1733084238696,0.00524583,97071.0,97070.0,0.62488199]
[1733084238907,0.00924583,97071.0,97070.0,0.62588199]
[1733084239355,0.00524583,97071.0,97070.0,0.62488199]
[1733084239579,0.00524583,97071.0,97070.0,0.62588199]
[1733084239580,0.00824583,97071.0,97070.0,0.62588199]
[1733084239814,0.00424583,97071.0,97070.0,0.62588199]
[1733084240020,0.01324583,97071.0,97070.0,0.62688199]
[1733084240671,0.00424583,97071.0,97070.0,0.62588199]
[1733084241369,0.01324583,97071.0,97070.0,0.62688199]
[1733084242277,0.01024583,97071.0,97070.0,0.62588199]
[1733084242738,0.01324583,97071.0,97070.0,0.62688199]
[1733084243701,0.01324583,97071.0,97070.0,0.93593199]
[1733084245527,1.98519756,97100.0,97092.0,0.21599]
[1733084245741,1.98519756,97100.0,97092.0,0.59033521]
[1733084245964,1.97537276,97100.0,97092.0,0.59033521]
[1733084246210,1.97537276,97100.0,97092.0,0.9053005]
[1733084247324,1.97537276,97100.0,97092.0,0.9153005]
[1733084247568,1.97537276,97100.0,97092.0,0.7653005]
[1733084248447,1.97537276,97100.0,97092.0,0.78552717]
[1733084251236,0.0017278,97099.0,97098.0,0.01]
[1733084251451,0.0017278,97099.0,97098.0,0.11284521]
[1733084251683,0.0017278,97099.0,97098.0,0.32478816]
[1733084252349,0.0017278,97099.0,97098.0,0.32778816]
[1733084252600,0.0017278,97099.0,97098.0,0.33078816]
[1733084253726,0.00189363,97099.0,97098.0,0.33078816]
[1733084257742,0.00189363,97099.0,97098.0,0.64152063]
[1733084258231,0.00189363,97099.0,97098.0,0.33078816]
[1733084259929,0.00189363,97099.0,97098.0,0.64131864]
[1733084261890,0.00189363,97099.0,97098.0,0.33078816]
[1733084272740,0.00189363,97099.0,97098.0,0.36237892]
[1733084272967,0.00189363,97099.0,97098.0,0.33078816]
[1733084273396,0.00189363,97099.0,97098.0,0.36237839]
[1733084275117,0.00189363,97099.0,97098.0,0.67134839]
[1733084277743,0.00189363,97099.0,97098.0,0.72024839]
[1733084277967,0.00189363,97099.0,97098.0,0.45537139]
[1733084278221,0.20786863,97099.0,97098.0,0.32093595]
[1733084278476,0.20786863,97099.0,97098.0,0.31497]
[1733084278910,0.20786863,97099.0,97098.0,0.31197]
[1733084279143,0.20786863,97099.0,97098.0,0.30897]
[1733084279351,0.20786863,97099.0,97098.0,0.31097]
[1733084279618,0.20786863,97099.0,97098.0,0.31197]
[1733084279835,0.20786863,97099.0,97098.0,0.31097]
[1733084280069,0.20786863,97099.0,97098.0,0.31197]
[1733084280817,0.00189363,97099.0,97098.0,0.30997]
[1733084281047,0.00189363,97099.0,97098.0,0.31197]
[1733084281291,0.12769363,97099.0,97098.0,0.31197]
[1733084282655,0.20617759,97099.0,97098.0,0.31795809]
[1733084282877,0.00020259,97099.0,97098.0,0.31795809]
[1733084284698,0.12600259,97099.0,97098.0,0.31795809]
[1733084285162,0.12600259,97099.0,97098.0,0.30997]
[1733084285405,0.12600259,97099.0,97098.0,0.30897]
[1733084285634,0.12600259,97099.0,97098.0,0.30997]
[1733084286332,0.00020259,97099.0,97098.0,0.30997]
[1733084291923,0.00020259,97099.0,97098.0,0.3108341]
[1733084305317,0.00020259,97099.0,97098.0,0.41367931]
[1733084305554,0.00020259,97099.0,97098.0,0.53987931]
[1733084305751,0.00020259,97099.0,97098.0,0.55702968]
[1733084308510,0.00020259,97099.0,97098.0,0.56702968]
[1733084309504,0.00020259,97099.0,97098.0,0.59002968]
[1733084309722,0.00020259,97099.0,97098.0,0.58902968]
[1733084310658,0.00020259,97099.0,97098.0,0.59502968]
[1733084311102,0.00020259,97099.0,97098.0,0.60402968]
[1733084311314,0.00020259,97099.0,97098.0,0.59502968]
[1733084311548,0.00020259,97099.0,97098.0,0.60402968]
[1733084311779,0.00020259,97099.0,97098.0,0.58902968]
[1733084312008,0.00020259,97099.0,97098.0,0.59602968]
[1733084312238,0.00020259,97099.0,97098.0,0.60402968]
[1733084312456,0.00020259,97099.0,97098.0,0.58902968]
[1733084312890,0.00020259,97099.0,97098.0,0.59402968]
[1733084313375,0.00020259,97099.0,97098.0,0.58902968]
[1733084313603,0.00020259,97099.0,97098.0,0.59402968]
[1733084314478,0.00020259,97099.0,97098.0,0.60002968]
[1733084314705,0.00020259,97099.0,97098.0,0.59402968]
[1733084314945,0.00020259,97099.0,97098.0,0.60002968]
[1733084319793,0.00020259,97099.0,97098.0,0.57702968]
[1733084320028,0.00020259,97099.0,97098.0,0.63906852]
[1733084320246,0.00020259,97099.0,97098.0,0.3268161]
[1733084320683,0.00020259,97099.0,97098.0,0.3208161]
[1733084320930,0.00020259,97099.0,97098.0,0.3148341]
[1733084321155,0.00020259,97099.0,97098.0,0.3118341]
[1733084321387,0.00020259,97099.0,97098.0,0.31978394]
[1733084321849,0.00020259,97099.0,97098.0,0.3138341]
[1733084322309,0.00020259,97099.0,97098.0,0.3098341]
[1733084322519,0.00020259,97099.0,97098.0,0.3108341]
[1733084324095,0.00020259,97099.0,97098.0,0.3098341]
[1733084324566,0.00020259,97099.0,97098.0,0.3108341]
[1733084344180,0.00020259,97099.0,97098.0,0.3920341]
[1733084348524,0.00020259,97099.0,97098.0,0.54137931]
[1733084348945,0.00020259,97099.0,97098.0,0.5473352]
[1733084350001,1.94337803,97100.0,97099.0,0.033]
[1733084350250,1.94337803,97100.0,97099.0,0.46564291]
[1733084350488,1.94337803,97100.0,97099.0,1.0909905]
[1733084350754,1.94337803,97100.0,97099.0,0.77873454]
[1733084350995,1.74936078,97100.0,97099.0,0.97030017]
[1733084351468,1.74936078,97100.0,97099.0,0.99134213]
[1733084351699,1.74936078,97100.0,97099.0,1.00034213]
[1733084351924,1.74936078,97100.0,97099.0,0.99134213]
[1733084352177,1.75036078,97100.0,97099.0,0.99234213]
[1733084353067,1.75236078,97100.0,97099.0,1.30326356]
[1733084353361,1.75336078,97100.0,97099.0,1.30426356]
[1733084355920,1.75336078,97100.0,97099.0,0.99228802]
[1733084356132,1.75336078,97100.0,97099.0,0.9607765]
[1733084357426,1.73231998,97100.0,97099.0,0.9607765]
[1733084360016,1.73231998,97100.0,97099.0,1.27219802]
[1733084360258,1.73231998,97100.0,97099.0,1.27306212]
[1733084360493,1.73231998,97100.0,97099.0,0.9616406]
[1733084361162,1.73231998,97100.0,97099.0,0.99310331]
[1733084364722,1.73231998,97100.0,97099.0,0.9616406]
[1733084365157,1.73231998,97100.0,97099.0,0.99308848]
[1733084365598,1.73231998,97100.0,97099.0,0.99308686]
[1733084366807,1.63407518,97100.0,97099.0,0.9616406]
[1733084367440,1.63407518,97100.0,97099.0,0.99308528]
[1733084367692,1.59348712,97100.0,97099.0,0.99308528]
[1733084367907,1.59348712,97100.0,97099.0,0.9616406]
[1733084368340,1.59348712,97100.0,97099.0,0.9930845]
[1733084368575,1.55280965,97100.0,97099.0,0.9616406]
[1733084369234,1.52822965,97100.0,97099.0,1.27266254]
[1733084369892,1.52822965,97100.0,97099.0,0.9616406]
[1733084370346,1.52822965,97100.0,97099.0,0.99308381]
[1733084370773,1.47831215,97100.0,97099.0,1.27261263]
[1733084370994,1.43872524,97100.0,97099.0,0.9616406]
[1733084372595,1.28703751,97100.0,97099.0,0.9616406]
[1733084373330,1.2661527,97100.0,97099.0,0.9616406]
[1733084375014,1.2251023,97100.0,97099.0,0.9616406]
[1733084375946,1.16824869,97100.0,97099.0,0.9616406]
[1733084377643,1.16824869,97100.0,97099.0,0.99311191]
[1733084380092,1.16771856,97100.0,97099.0,1.30402586]
[1733084380784,1.16771856,97100.0,97099.0,0.99311191]
[1733084383033,1.1097877,97100.0,97099.0,0.99311191]
[1733084384567,0.0098302,97118.0,97117.0,0.01]
[1733084384786,0.0098302,97118.0,97117.0,0.49178221]
[1733084384999,0.0017296,97123.0,97122.0,0.215926]
[1733084385214,0.0017296,97123.0,97122.0,0.34177121]
[1733084385443,0.0017296,97123.0,97122.0,0.34762158]
[1733084385854,0.0017296,97123.0,97122.0,0.49762158]
[1733084385856,0.0017296,97123.0,97122.0,0.80651158]
[1733084387016,0.0017296,97123.0,97122.0,0.8646636]
[1733084387685,0.0017296,97123.0,97122.0,0.8826636]
[1733084388842,0.0017296,97123.0,97122.0,0.90332404]
[1733084389531,0.0017296,97123.0,97122.0,0.85622404]
[1733084394634,0.0017296,97123.0,97122.0,0.88779284]
[1733084405099,0.0083833,97137.0,97136.0,0.238896]
[1733084405304,0.00811233,97137.0,97136.0,0.34174121]
[1733084405520,0.0481,97140.0,97139.0,0.01]
[1733084405742,0.0481,97140.0,97139.0,0.11284521]
[1733084405961,0.0481,97140.0,97139.0,0.11865281]
[1733084406393,0.04815958,97140.0,97139.0,0.42749281]
[1733084406844,0.04815958,97140.0,97139.0,0.43249281]
[1733084407808,0.02815958,97140.0,97139.0,0.43249281]
[1733084408944,0.02815958,97140.0,97139.0,0.43649281]
[1733084409171,0.00815958,97140.0,97139.0,0.43649281]
[1733084409411,5.958e-05,97140.0,97139.0,0.43649281]
[1733084410062,5.958e-05,97140.0,97139.0,0.60949281]
[1733084410317,5.958e-05,97140.0,97139.0,0.64106849]
[1733084410974,0.0782,97157.0,97143.0,0.01]
[1733084411201,0.0782,97157.0,97143.0,0.14345998]
[1733084411555,0.0782,97157.0,97143.0,0.48385566]
[1733084411786,0.0782,97157.0,97143.0,0.48203393]
[1733084413115,0.0782,97157.0,97143.0,0.48303393]
[1733084413346,0.0782,97157.0,97143.0,0.45245825]
[1733084416777,0.0810294,97144.0,97143.0,0.41945825]
[1733084416994,0.0810294,97144.0,97143.0,0.74138111]
[1733084417225,0.0810294,97144.0,97143.0,0.41945825]
[1733084418550,0.0810294,97144.0,97143.0,0.41745825]
[1733084418795,0.0820294,97144.0,97143.0,0.42545825]
[1733084419314,0.0820294,97144.0,97143.0,0.42645825]
[1733084419540,0.0810294,97144.0,97143.0,0.42245825]
[1733084419766,0.0820294,97144.0,97143.0,0.42845825]
[1733084419976,0.0820294,97144.0,97143.0,0.7404422]
[1733084420865,0.1277294,97144.0,97143.0,0.32561304]
[1733084422388,0.1267294,97144.0,97143.0,0.31961304]
[1733084422610,0.1267294,97144.0,97143.0,0.31461304]
[1733084422842,0.1277294,97144.0,97143.0,0.31461304]
[1733084423051,0.13748949,97144.0,97143.0,0.31561304]
[1733084423919,0.13748949,97144.0,97143.0,0.31461304]
[1733084424134,0.13748949,97144.0,97143.0,0.31661304]
[1733084425907,0.14048949,97144.0,97143.0,0.31461304]
[1733084426346,0.13748949,97144.0,97143.0,0.31461304]
[1733084426555,0.14048949,97144.0,97143.0,0.31461304]
[1733084427051,0.14348949,97144.0,97143.0,0.31461304]
[1733084431920,0.14348949,97144.0,97143.0,0.3121614]
[1733084433934,0.09778949,97144.0,97143.0,0.3121614]
[1733084434174,0.0870294,97144.0,97143.0,0.3121614]
[1733084435380,0.0017294,97144.0,97143.0,0.3121614]
[1733084435605,0.0027294,97144.0,97143.0,0.3131614]
[1733084436024,0.0017294,97144.0,97143.0,0.3131614]
[1733084436261,0.0017294,97144.0,97143.0,0.3121614]
[1733084436473,0.0017294,97144.0,97143.0,0.3141614]
[1733084436932,0.0017294,97144.0,97143.0,0.3151614]
[1733084438028,0.0017294,97144.0,97143.0,0.3121614]
[1733084438542,0.0017294,97144.0,97143.0,0.3171614]
[1733084438766,0.0017294,97144.0,97143.0,0.3151614]
[1733084438988,0.0017294,97144.0,97143.0,0.3121614]
[1733084439224,0.0017294,97144.0,97143.0,0.3151614]
[1733084439455,0.0017294,97144.0,97143.0,0.3121614]
[1733084439687,0.0017294,97144.0,97143.0,0.3161614]
[1733084439925,0.0017294,97144.0,97143.0,0.3191614]
[1733084440158,0.0017294,97144.0,97143.0,0.42200661]
[1733084441794,0.0017294,97144.0,97143.0,0.41900661]
[1733084442020,0.0017294,97144.0,97143.0,0.42300661]
[1733084451988,0.0017294,97144.0,97143.0,0.73456891]
[1733084452699,0.0017294,97144.0,97143.0,0.42300661]
[1733084452904,0.0017294,97144.0,97143.0,0.73456891]
[1733084453549,0.0017294,97144.0,97143.0,0.42300661]
[1733084455833,0.0017294,97144.0,97143.0,0.47860661]
[1733084456051,0.0017294,97144.0,97143.0,0.58390661]
[1733084456699,0.0017294,97144.0,97143.0,0.61542344]
[1733084457195,0.0017294,97144.0,97143.0,0.61142344]
[1733084457410,0.0097294,97144.0,97143.0,0.57690661]
[1733084457635,0.0147294,97144.0,97143.0,0.57790661]
[1733084457887,0.0067294,97144.0,97143.0,0.57690661]
[1733084458098,0.0147294,97144.0,97143.0,0.75942186]
[1733084458336,0.0147294,97144.0,97143.0,0.72790661]
[1733084458571,0.0097294,97144.0,97143.0,0.72690661]
[1733084458793,0.0147294,97144.0,97143.0,0.72790661]
[1733084464355,0.0147294,97144.0,97143.0,0.75942247]
[1733084464572,0.0147294,97144.0,97143.0,0.72790661]
[1733084464814,0.0147294,97144.0,97143.0,0.7594207]
[1733084466318,0.0147294,97144.0,97143.0,0.72790661]
[1733084467249,0.0147294,97144.0,97143.0,0.75943046]
[1733084473152,0.0047294,97144.0,97143.0,0.75943046]
[1733084476524,0.0017296,97153.0,97152.0,0.361362]
[1733084476765,0.00090773,97155.0,97154.0,0.033]
[1733084477002,0.00090773,97155.0,97154.0,0.44169039]
[1733084477245,0.00090773,97155.0,97154.0,0.75198085]
[1733084477480,0.00090773,97155.0,97154.0,0.75134185]
[1733084479226,0.00090773,97155.0,97154.0,0.77337985]
[1733084479716,0.00190773,97155.0,97154.0,0.77337985]
[1733084480161,0.00090773,97155.0,97154.0,0.77337985]
[1733084480389,0.00190773,97155.0,97154.0,0.77437985]
[1733084480848,0.00090773,97155.0,97154.0,0.77237985]
[1733084481095,0.00090773,97155.0,97154.0,0.77337985]
[1733084481357,0.00090773,97155.0,97154.0,0.77237985]
[1733084481830,0.00090773,97155.0,97154.0,0.77337985]
[1733084482307,0.00090773,97155.0,97154.0,0.77437985]
[1733084482529,0.00090773,97155.0,97154.0,0.76501885]
[1733084482804,0.00090773,97155.0,97154.0,0.77337985]
[1733084483042,0.00090773,97155.0,97154.0,0.47787985]
[1733084483285,0.00090773,97155.0,97154.0,0.416957]
[1733084483751,0.00090773,97155.0,97154.0,0.41859833]
[1733084484467,0.00090773,97155.0,97154.0,0.41759833]
[1733084484696,0.00090773,97155.0,97154.0,0.42159833]
[1733084485180,0.00090773,97155.0,97154.0,0.41659833]
[1733084485867,0.00090773,97155.0,97154.0,0.42159833]
[1733084486388,0.00090773,97155.0,97154.0,0.41659833]
[1733084486628,0.0831,97157.0,97155.0,0.00159227]
[1733084486858,0.0831,97157.0,97156.0,0.10284521]
[1733084487076,0.0831,97157.0,97156.0,0.1078065]
[1733084487539,0.0831,97157.0,97156.0,0.41956371]
[1733084488006,0.0841,97157.0,97156.0,0.41956371]
[1733084488750,0.0841,97157.0,97156.0,0.1078065]
[1733084489206,0.0841,97157.0,97156.0,0.1128065]
[1733084489423,0.0841,97157.0,97156.0,0.1178065]
[1733084489644,0.0841,97157.0,97156.0,0.01496129]
[1733084490144,0.1318,97157.0,97156.0,0.01496129]
[1733084490378,0.132439,97157.0,97156.0,0.01496129]
[1733084490599,0.132439,97157.0,97156.0,0.00996129]
[1733084490844,0.132439,97157.0,97156.0,0.01496129]
[1733084491091,0.206493,97156.0,97155.0,0.00159227]
[1733084491314,0.487293,97156.0,97155.0,0.00159227]
[1733084491550,0.336686,97141.0,97140.0,0.0008638]
[1733084492956,0.337686,97141.0,97140.0,0.0098638]
[1733084493203,0.336686,97141.0,97140.0,0.0008638]
[1733084493436,0.337325,97141.0,97140.0,0.0008638]
[1733084493668,0.3490563,97141.0,97140.0,0.0018638]